bitfinex/quotes_ETHUSD_20251110
["timestamp","ask_amount","ask_price","bid_price","bid_amount"]
[1762807621350,5.43634021,3584.8,3584.4,0.002]
[1762807621351,2.78978937,3584.5,3584.4,0.002]
[1762807621524,2.79458937,3584.5,3584.4,0.002]
[1762807621714,4.50860137,3584.5,3584.4,0.002]
[1762807624019,1.718812,3584.5,3584.4,0.002]
[1762807624218,4.7454898,3584.5,3584.4,0.002]
[1762807628965,5.18307945,3584.5,3584.4,0.002]
[1762807629566,1.93899008,3584.5,3584.4,0.002]
[1762807629730,5.18307945,3584.5,3584.4,0.002]
[1762807630131,2.39329008,3584.5,3584.4,0.002]
[1762807630338,5.18307945,3584.5,3584.4,0.002]
[1762807630774,2.39329008,3584.5,3584.4,0.002]
[1762807630966,5.18307945,3584.5,3584.4,0.002]
[1762807632251,2.39329008,3584.5,3584.4,0.002]
[1762807632787,1.93899008,3584.5,3584.4,0.002]
[1762807632991,0.67447808,3584.5,3584.4,0.4534]
[1762807633196,0.72228965,3584.5,3584.4,0.002]
[1762807634043,3.42847861,3584.9,3584.4,0.002]
[1762807634446,0.4543,3584.8,3584.4,0.002]
[1762807635374,1.444412,3584.9,3584.4,2.7918654]
[1762807636158,0.1847,3584.9,3584.4,2.7918654]
[1762807636655,3.24340684,3585.4,3584.8,0.4514]
[1762807636879,2.78928891,3585.2,3584.8,0.4514]
[1762807637280,3.23950354,3585.3,3584.8,0.4514]
[1762807637480,0.43750272,3585.4,3585.2,0.4514]
[1762807637885,0.43750272,3585.4,3584.9,3.27284943]
[1762807638192,0.43750272,3585.4,3585.3,0.4514]
[1762807638395,0.00100001,3585.9,3585.5,2.78894975]
[1762807638599,0.00100001,3585.9,3585.6,0.4514]
[1762807638981,0.00100001,3585.9,3585.8,0.4514]
[1762807639696,0.00100001,3585.9,3585.8,3.24017795]
[1762807640374,0.00100001,3585.9,3585.8,3.72357795]
[1762807640570,0.00100001,3585.9,3585.8,4.37482797]
[1762807641359,0.00100001,3585.9,3585.8,4.80821974]
[1762807641556,0.00100001,3585.9,3585.8,4.78033197]
[1762807641756,0.00100001,3585.9,3585.8,4.80821974]
[1762807642080,0.00100001,3585.9,3585.8,6.04004397]
[1762807645816,0.00100001,3585.9,3585.8,6.3403844]
[1762807645992,0.00100001,3585.9,3585.8,6.04004397]
[1762807648074,0.00100001,3585.9,3585.8,20.54004397]
[1762807649373,0.00100001,3585.9,3585.8,20.65176847]
[1762807650905,0.00100001,3585.9,3585.8,20.54004397]
[1762807653328,0.00100001,3585.9,3585.8,24.40004397]
[1762807657844,0.01,3586.9,3586.8,2.78800044]
[1762807658044,0.01,3587.9,3587.8,3.19272736]
[1762807658210,0.01,3587.9,3587.8,3.68282736]
[1762807658434,0.01,3587.9,3587.8,3.27732336]
[1762807658855,0.01,3587.9,3587.8,3.74782336]
[1762807659367,0.01,3587.9,3587.8,4.82551109]
[1762807659660,0.01,3587.9,3587.8,3.94950709]
[1762807659961,0.01,3587.9,3587.8,3.74782336]
[1762807663747,0.011,3587.9,3587.8,3.74782336]
[1762807664067,0.4855,3587.9,3587.8,2.78722336]
[1762807664275,0.952,3587.9,3587.8,2.78722336]
[1762807664570,0.952,3587.9,3587.7,2.78723753]
[1762807664775,0.952,3587.9,3587.6,2.78737874]
[1762807664776,0.0027,3587.7,3587.6,2.78737874]
[1762807666048,0.2079,3587.9,3587.8,2.78722336]
[1762807666482,0.4804,3587.9,3587.8,2.78722336]
[1762807666684,0.2835,3587.9,3587.8,2.78722336]
[1762807666888,0.2835,3587.9,3587.8,8.27698355]
[1762807666889,0.011,3587.9,3587.8,8.27698355]
[1762807667094,0.011,3587.9,3587.8,8.24911132]
[1762807667983,1e-08,3587.9,3587.8,9.50882332]
[1762807668187,1e-08,3587.9,3587.8,24.00882332]
[1762807668875,1e-08,3587.9,3587.8,20.47049957]
[1762807671084,1e-08,3587.9,3587.8,5.49999957]
[1762807671285,1e-08,3587.9,3587.8,5.97049957]
[1762807671784,1e-08,3587.9,3587.8,20.47049957]
[1762807673888,1e-08,3587.9,3587.8,24.33049957]
[1762807677596,1e-08,3587.9,3587.8,9.35999957]
[1762807678586,1e-08,3587.9,3587.8,9.82359957]
[1762807679710,1e-08,3587.9,3587.8,9.35999957]
[1762807681063,0.25460001,3587.9,3587.8,8.46439557]
[1762807681399,1e-08,3587.9,3587.8,8.86989957]
[1762807681595,1e-08,3587.9,3587.8,9.33569957]
[1762807681798,1e-08,3587.9,3587.8,8.86989957]
[1762807682163,0.25460001,3587.9,3587.8,8.86989957]
[1762807682789,0.25460001,3587.9,3587.8,8.87189957]
[1762807683061,0.25460001,3587.9,3587.8,8.31443936]
[1762807683328,1e-08,3587.9,3587.8,8.78023936]
[1762807683607,1e-08,3587.9,3587.8,9.24383936]
[1762807684774,1e-08,3587.9,3587.8,8.78023936]
[1762807686101,1e-08,3587.9,3587.8,23.28023936]
[1762807686269,1e-08,3587.9,3587.8,25.93336117]
[1762807687998,1e-08,3587.9,3587.8,26.39696117]
[1762807688866,1e-08,3587.9,3587.8,29.93517335]
[1762807693986,1e-08,3587.9,3587.8,33.47338553]
[1762807694919,1e-08,3587.9,3587.8,34.95803565]
[1762807695220,1e-08,3587.9,3587.8,33.47338553]
[1762807695428,1e-08,3587.9,3587.8,34.9568797]
[1762807696276,1e-08,3587.9,3587.8,25.52785717]
[1762807696479,1e-08,3587.9,3587.8,16.04997196]
[1762807696698,1e-08,3587.9,3587.8,14.56606935]
[1762807696898,1e-08,3587.9,3587.8,29.06606935]
[1762807697103,1e-08,3587.9,3587.8,33.06788153]
[1762807697304,1e-08,3587.9,3587.8,33.47338553]
[1762807697989,1e-08,3587.9,3587.8,29.47157335]
[1762807698988,1e-08,3587.9,3587.8,29.93517335]
[1762807699192,1e-08,3587.9,3587.8,10.24026935]
[1762807699193,0.91740001,3587.9,3587.8,10.24026935]
[1762807699609,0.91740001,3587.9,3587.8,10.64577335]
[1762807699773,0.43010001,3587.9,3587.8,10.64577335]
[1762807699977,1e-08,3587.9,3587.8,11.57517335]
[1762807700186,0.25880001,3587.9,3587.8,10.64577335]
[1762807700414,0.25880001,3587.9,3587.8,7.99265154]
[1762807701575,0.93030001,3587.9,3587.8,0.002]
[1762807701777,3.71744569,3587.9,3587.8,0.002]
[1762807701975,3.71744569,3587.9,3587.4,0.002]
[1762807701976,2.78744597,3587.6,3587.4,0.002]
[1762807702177,0.0049,3587.5,3587.4,0.002]
[1762807702481,0.0049,3587.5,3586.1,0.01]
[1762807702830,0.679,3586.2,3586.1,0.01]
[1762807703184,0.9434,3586.2,3586.1,0.01]
[1762807703571,0.9434,3586.2,3586.1,2.79854465]
[1762807703818,0.2644,3586.5,3586.4,2.78829713]
[1762807704119,0.495,3586.2,3586.1,6.33675683]
[1762807704288,0.495,3586.2,3586.1,2.79854465]
[1762807704488,0.495,3586.2,3586.1,0.01]
[1762807704489,0.7594,3586.2,3586.1,0.01]
[1762807704908,0.184,3586.7,3586.1,2.79854465]
[1762807705104,0.18400001,3587.9,3586.8,5.57600088]
[1762807705302,0.18400001,3587.9,3587.6,2.78731411]
[1762807705602,0.18400001,3587.9,3586.6,0.405504]
[1762807705790,0.4939,3587.5,3587.4,2.78753414]
[1762807706187,0.7474,3587.5,3587.4,2.78753414]
[1762807707001,0.7474,3587.5,3587.3,2.78754747]
[1762807707184,0.18400001,3587.9,3587.4,2.78753414]
[1762807707429,0.18400001,3587.9,3586.6,0.405504]
[1762807707430,0.4811045,3587.9,3587.5,2.7874479]
[1762807707834,0.2772,3587.6,3586.8,1.665216]
[1762807708030,0.0028,3587.4,3587.3,2.78761185]
[1762807708571,0.4728,3587.4,3587.3,2.78761185]
[1762807708770,0.4728,3587.4,3586.6,2.78815591]
[1762807708933,0.2744,3587.2,3587.1,2.78776727]
[1762807709748,0.7444,3587.2,3587.1,2.78776727]
[1762807710088,0.7444,3587.2,3586.8,2.78794442]
[1762807710246,0.2717,3586.4,3586.1,1.83142397]
[1762807710447,0.1961,3586.7,3586.6,2.78815591]
[1762807710981,0.9414,3586.7,3586.6,2.78815591]
[1762807713382,0.47,3587.3,3586.3,1.259712]
[1762807713692,0.2772,3586.4,3586.1,0.415504]
[1762807714115,0.2772,3586.4,3586.3,4.45360514]
[1762807714292,0.2772,3586.4,3586.3,3.19389314]
[1762807715530,0.2772,3586.4,3586.3,2.78838914]
[1762807715748,0.7453,3586.4,3586.3,2.78838914]
[1762807716151,0.7453,3586.4,3586.1,0.01]
[1762807716457,0.4939,3586.2,3586.1,0.01]
[1762807716602,0.4939,3586.2,3586.1,2.79854465]
[1762807716811,0.7474,3586.2,3586.1,0.01]
[1762807717123,0.4939,3586.2,3586.1,2.79854465]
[1762807717504,0.7474,3586.2,3586.1,2.79854465]
[1762807717908,0.1961,3586.9,3586.1,0.6832]
[1762807718221,0.6661,3586.9,3586.8,2.78800044]
[1762807718421,0.6661,3586.9,3586.6,2.78815176]
[1762807718622,0.4939,3586.7,3586.6,2.78815176]
[1762807719159,0.7474,3586.7,3586.6,2.78815176]
[1762807719870,0.7474,3586.7,3586.5,2.78822833]
[1762807720164,0.47,3586.6,3586.5,2.78822833]
[1762807720516,0.1961,3586.9,3586.8,2.78800044]
[1762807721055,0.9414,3586.9,3586.8,2.78800044]
[1762807721508,0.9414,3586.9,3586.6,2.78810055]
[1762807721719,0.9414,3586.9,3586.3,0.002]
[1762807721720,0.2772,3586.7,3586.3,0.002]
[1762807721914,0.2744,3586.4,3586.3,2.79031257]
[1762807722153,0.4939,3586.4,3586.3,2.79038914]
[1762807722577,0.1961,3586.9,3586.8,2.78800044]
[1762807722960,0.9414,3586.9,3586.8,2.78800044]
[1762807723782,0.9414,3586.9,3586.3,0.002]
[1762807723947,0.6661,3586.9,3586.8,2.78800044]
[1762807724352,0.9433,3586.9,3586.4,2.78831139]
[1762807724649,0.4939,3586.4,3586.3,2.79038914]
[1762807725049,0.7474,3586.4,3586.3,2.79038914]
[1762807725373,0.7474,3586.4,3586.3,0.002]
[1762807726311,0.2747,3586.0,3585.4,0.002]
[1762807726519,3.25751129,3585.5,3585.4,0.002]
[1762807726671,3.58326242,3585.5,3585.4,0.002]
[1762807726879,2.78924467,3585.2,3585.1,0.01]
[1762807727112,2.78932247,3585.1,3585.0,0.002]
[1762807727269,2.78963372,3584.7,3584.4,0.002]
[1762807727472,0.0053,3584.7,3584.4,0.002]
[1762807727717,0.4753,3584.7,3584.4,0.002]
[1762807730510,0.4753,3584.7,3584.4,2.79184342]
[1762807731214,0.4753,3584.7,3584.5,2.78977646]
[1762807731515,0.1961,3585.3,3584.8,2.78953599]
[1762807731716,0.79575113,3585.5,3585.2,2.78921603]
[1762807731717,0.32575113,3585.5,3585.2,2.78921603]
[1762807731894,0.47,3585.5,3584.9,2.78947111]
[1762807732093,0.47,3585.5,3584.7,0.405504]
[1762807732293,0.47,3585.5,3585.4,2.78908908]
[1762807732703,0.7239,3585.5,3585.4,2.78908908]
[1762807734128,0.7239,3585.5,3585.3,2.78915893]
[1762807734327,0.47,3585.4,3584.6,0.002]
[1762807734492,0.2539,3584.7,3584.6,0.002]
[1762807734893,0.2539,3584.7,3584.6,2.79171154]
[1762807735586,0.4643,3585.0,3584.9,2.78947808]
[1762807735988,0.7238,3585.0,3584.9,2.78947808]
[1762807736892,0.2595,3585.0,3584.9,2.78947808]
[1762807739423,0.001,3585.5,3584.9,0.4588]
[1762807739722,0.001,3585.5,3585.4,2.78908908]
[1762807740229,0.2526,3585.5,3585.4,2.78908908]
[1762807740437,0.001,3585.5,3585.4,3.24788908]
[1762807740612,0.001,3585.5,3585.4,2.78908908]
[1762807741018,0.4663,3585.5,3585.4,2.78908908]
[1762807741725,0.4663,3585.5,3584.4,7.12840335]
[1762807741907,0.0026,3585.3,3585.0,2.78934934]
[1762807742108,0.001,3585.5,3585.2,2.78924467]
[1762807742335,0.001,3585.5,3585.4,2.78908908]
[1762807742636,3.51171262,3585.5,3584.6,0.002]
[1762807742798,0.0025,3585.3,3585.0,2.78939903]
[1762807743002,0.2469,3585.1,3585.0,2.78939903]
[1762807744033,0.7192,3585.1,3584.6,2.7916353]
[1762807744234,0.0049,3584.9,3584.7,2.78963372]
[1762807744534,2.79005722,3585.5,3584.6,0.002]
[1762807744535,0.001,3585.5,3585.1,2.78927745]
[1762807744695,0.4723,3585.4,3584.9,2.78946108]
[1762807745039,0.4723,3585.4,3585.2,2.7891978]
[1762807745233,0.2494,3585.3,3585.2,2.7891978]
[1762807745408,0.2494,3585.3,3584.6,0.002]
[1762807745616,0.0047,3585.1,3585.0,2.78940027]
[1762807747200,0.001,3585.5,3584.6,3.26826807]
[1762807747402,0.4733,3585.5,3584.7,0.405504]
[1762807747614,0.4733,3585.5,3585.2,2.78921135]
[1762807747935,0.4733,3585.5,3585.3,2.78914956]
[1762807748338,0.2494,3585.4,3585.3,2.78914956]
[1762807748701,0.2494,3585.4,3584.9,2.78941652]
[1762807748903,0.2469,3584.8,3584.6,0.002]
[1762807749119,0.0049,3584.7,3584.6,0.002]
[1762807749504,0.4772,3584.7,3584.6,0.002]
[1762807754950,0.0049,3584.7,3584.6,2.79171154]
[1762807756760,0.001,3585.0,3584.6,2.79171154]
[1762807756761,0.001,3585.0,3584.9,2.78947808]
[1762807757046,0.001,3585.0,3584.9,4.94138886]
[1762807757266,0.001,3585.0,3584.9,5.39009408]
[1762807761157,0.001,3585.9,3585.7,3.19435973]
[1762807761333,0.001,3585.9,3585.7,4.91287173]
[1762807761526,0.001,3585.9,3585.7,6.15965369]
[1762807763576,0.001,3585.9,3585.7,4.91287173]
[1762807763725,0.001,3585.9,3585.7,3.24765573]
[1762807766035,0.001,3585.9,3585.7,3.70015573]
[1762807766435,0.001,3585.9,3585.7,3.24765573]
[1762807768694,0.2743,3585.8,3585.7,2.78885573]
[1762807769052,0.001,3585.8,3585.7,2.78885573]
[1762807769758,0.9431,3585.8,3584.7,2.78963372]
[1762807770085,0.001,3585.8,3585.7,3.46815573]
[1762807770382,0.001,3585.8,3585.7,4.32615973]
[1762807770692,0.001,3585.8,3585.7,4.72786773]
[1762807771376,0.001,3585.8,3585.7,5.18036773]
[1762807772485,0.001,3585.8,3585.7,5.90334307]
[1762807775382,0.001,3585.8,3585.7,5.27024307]
[1762807775547,0.001,3585.8,3585.7,4.54726773]
[1762807776660,0.001,3585.8,3585.7,4.99976773]
[1762807776874,0.001,3585.8,3585.7,5.02765628]
[1762807777073,0.001,3585.8,3585.7,5.40527173]
[1762807778598,1e-08,3586.2,3586.1,3.83244865]
[1762807778803,1e-08,3586.2,3586.1,5.92079018]
[1762807779004,1e-08,3586.2,3586.1,6.37329018]
[1762807780277,1e-08,3586.2,3586.1,20.87329018]
[1762807783377,1e-08,3586.2,3586.1,4.95246065]
[1762807783791,1e-08,3586.2,3586.1,19.45246065]
[1762807784180,0.26020001,3586.2,3586.1,4.04825665]
[1762807784704,0.74380001,3586.2,3586.1,2.78854465]
[1762807785497,0.74380001,3586.2,3586.0,2.78860836]
[1762807785701,1e-08,3586.2,3586.1,2.78854465]
[1762807786212,0.26240001,3586.2,3586.1,2.78854465]
[1762807787525,0.74380001,3586.2,3585.5,0.405504]
[1762807787719,0.1986,3585.9,3585.8,2.78877795]
[1762807787922,0.1986,3585.9,3585.5,2.78895022]
[1762807788120,0.2602,3585.7,3585.6,2.78893351]
[1762807788414,0.4836,3585.8,3585.6,2.78893351]
[1762807788415,0.4836,3585.8,3585.6,2.78892404]
[1762807788587,0.746,3585.7,3585.6,2.78892404]
[1762807789017,0.746,3585.7,3585.0,2.78940027]
[1762807789217,0.1986,3585.9,3585.0,2.78940027]
[1762807789218,0.4829,3585.1,3585.0,2.78940027]
[1762807789917,0.746,3585.1,3585.0,2.78940027]
[1762807791841,0.746,3585.1,3584.9,0.002]
[1762807792144,0.4884,3585.0,3584.9,2.79146463]
[1762807792349,0.4884,3585.0,3584.9,0.002]
[1762807792635,0.4884,3585.0,3584.9,2.79147808]
[1762807792991,0.4884,3585.0,3584.9,0.002]
[1762807795537,0.81615773,3585.0,3584.9,0.002]
[1762807795747,0.4884,3585.0,3584.9,0.002]
[1762807797060,0.001,3585.8,3585.0,2.78935745]
[1762807797061,1.260712,3585.8,3585.0,2.78935745]
[1762807797367,0.7438,3585.0,3584.9,0.002]
[1762807800171,0.2665,3585.0,3584.9,0.002]
[1762807800461,2.78963372,3584.7,3584.6,0.002]
[1762807800649,3.10004709,3584.7,3584.6,0.002]
[1762807800852,3.57944709,3584.7,3584.6,0.002]
[1762807801450,4.83915909,3584.7,3584.6,0.002]
[1762807802188,4.83915909,3584.7,3584.1,0.012]
[1762807802189,1.259712,3583.8,3583.0,0.002]
[1762807802347,4.05027988,3583.5,3583.0,0.002]
[1762807802557,4.05051351,3583.2,3583.0,0.002]
[1762807802853,4.05361351,3583.2,3583.0,0.002]
[1762807803048,4.53301351,3583.2,3583.0,0.002]
[1762807804280,8.95555414,3583.2,3583.0,0.002]
[1762807804455,10.42428046,3583.2,3583.0,0.002]
[1762807804857,2.79126891,3582.6,3582.1,0.012]
[1762807805188,2.79152384,3582.3,3582.1,0.012]
[1762807805388,0.4346,3582.2,3582.1,0.012]
[1762807805585,0.7454,3582.2,3582.1,0.012]
[1762807805796,3.53698059,3582.2,3582.1,0.012]
[1762807805991,3.98549456,3582.2,3582.1,0.012]
[1762807806291,0.4346,3582.2,3582.1,0.012]
[1762807807207,0.7454,3582.2,3582.1,0.012]
[1762807807421,0.4346,3582.2,3582.1,0.012]
[1762807807589,0.1839,3582.7,3582.1,0.474]
[1762807807753,0.1839,3582.7,3582.3,2.7914994]
[1762807808089,0.1839,3582.7,3582.2,2.79151897]
[1762807808290,0.4794,3582.6,3582.1,0.012]
[1762807808459,0.4794,3582.6,3582.2,2.79157511]
[1762807808655,0.2664,3582.2,3582.1,0.012]
[1762807809187,3.53528059,3582.2,3582.1,0.012]
[1762807809511,0.7437,3582.2,3582.1,0.012]
[1762807810000,1.09720507,3582.2,3582.1,0.012]
[1762807810301,0.61990507,3582.2,3582.1,0.012]
[1762807810510,3.53528059,3582.2,3582.1,0.012]
[1762807811210,0.7437,3582.2,3582.1,0.012]
[1762807811554,3.53528059,3582.2,3582.1,0.012]
[1762807813601,4.79499259,3582.2,3582.1,0.012]
[1762807813962,9.21753322,3582.2,3582.1,0.012]
[1762807814158,2.79189234,3581.8,3581.7,0.002]
[1762807814493,4.53580434,3581.8,3581.7,0.002]
[1762807814790,4.94130834,3581.8,3581.7,0.002]
[1762807815287,4.05191616,3581.4,3581.3,0.002]
[1762807815491,5.2917162,3581.4,3581.3,0.002]
[1762807815816,3.1978641,3581.2,3581.1,0.01]
[1762807815993,3.1978641,3581.2,3580.3,0.002]
[1762807815994,2.79291919,3580.5,3580.3,0.002]
[1762807816295,2.79243807,3581.1,3580.3,0.002]
[1762807816296,0.4794,3581.1,3580.3,0.002]
[1762807816503,0.32717716,3581.0,3580.3,0.002]
[1762807816713,1.259712,3581.2,3580.4,2.79292925]
[1762807816878,0.4794,3581.2,3580.3,0.002]
[1762807817205,3.27189547,3581.1,3580.3,2.79505725]
[1762807817407,2.79267903,3580.8,3580.3,0.002]
[1762807817704,0.4509,3580.4,3580.3,0.002]
[1762807817927,0.2809,3580.4,3580.3,0.002]
[1762807818102,2.79276375,3580.7,3580.3,0.002]
[1762807818469,3.27216375,3580.7,3580.3,0.002]
[1762807818665,3.27222971,3580.6,3580.3,0.002]
[1762807818919,3.07388402,3580.4,3580.3,0.002]
[1762807819089,0.2809,3580.4,3580.3,0.002]
[1762807819282,0.7584,3580.4,3580.3,0.002]
[1762807819488,3.55138402,3580.4,3580.3,0.002]
[1762807819688,0.7584,3580.4,3580.3,0.002]
[1762807820915,0.2809,3580.4,3580.3,0.002]
[1762807821207,1.259712,3580.9,3580.3,0.464]
[1762807821408,0.31564157,3580.8,3580.3,3.25705869]
[1762807821570,2.79229845,3581.3,3580.3,3.25705869]
[1762807821571,1.259712,3581.8,3580.3,0.464]
[1762807821775,1.259712,3581.2,3580.5,2.79285844]
[1762807822095,4.05211525,3581.2,3580.5,2.79285844]
[1762807822296,3.27161395,3581.4,3580.5,0.4894]
[1762807822297,0.4794,3581.4,3580.5,0.4894]
[1762807822511,0.43805397,3581.1,3580.7,2.79269698]
[1762807823013,0.43805397,3581.1,3581.0,0.462]
[1762807823180,0.43805397,3581.1,3580.3,0.002]
[1762807823380,0.43805397,3581.1,3580.5,2.79285096]
[1762807823575,0.4794,3581.0,3580.3,0.002]
[1762807823790,3.2305081,3581.1,3580.3,0.002]
[1762807823791,0.37099081,3580.9,3580.3,0.002]
[1762807823997,0.43805397,3581.1,3580.5,2.79284206]
[1762807824580,0.43805397,3581.1,3580.4,2.79293368]
[1762807824781,2.79251605,3581.0,3580.3,2.79504362]
[1762807825012,2.79273527,3580.8,3580.3,0.002]
[1762807825280,3.4430058,3580.8,3580.3,0.002]
[1762807825478,0.65027053,3580.8,3580.3,0.002]
[1762807825700,2.79260783,3580.9,3580.3,0.002]
[1762807825902,0.4687,3581.0,3580.3,0.002]
[1762807826186,3.23051671,3581.1,3580.3,0.002]
[1762807826393,3.23051671,3581.1,3580.4,2.79298338]
[1762807826734,0.64915051,3581.0,3580.4,2.79298338]
[1762807826897,0.64915051,3581.0,3580.3,0.002]
[1762807827101,3.23153909,3581.1,3580.4,2.79298402]
[1762807827297,0.43905397,3581.1,3580.3,0.4615]
[1762807827498,0.43905397,3581.1,3580.6,2.79280921]
[1762807827832,0.43905397,3581.1,3581.0,0.4511]
[1762807828001,0.43905397,3581.1,3580.3,0.4615]
[1762807828316,2.79259663,3580.9,3580.3,0.002]
[1762807828479,0.6492801,3580.9,3580.3,0.002]
[1762807828680,2.79271569,3580.8,3580.3,0.002]
[1762807828984,3.44190489,3580.9,3580.3,0.002]
[1762807829587,1.1179801,3580.9,3580.3,0.002]
[1762807829785,0.2916,3580.4,3580.3,0.002]
[1762807830380,3.08458402,3580.4,3580.3,0.002]
[1762807830619,0.2916,3580.4,3580.3,0.002]
[1762807830807,2.79275064,3580.7,3580.3,0.002]
[1762807831011,0.43905397,3581.1,3580.6,0.4511]
[1762807831196,2.79266639,3580.9,3580.3,0.4615]
[1762807831419,0.0029,3580.4,3580.3,0.002]
[1762807831617,0.77525982,3580.8,3580.3,0.002]
[1762807831618,3.19083481,3580.8,3580.3,0.002]
[1762807831818,0.43905397,3581.1,3580.4,0.4595]
[1762807832030,2.79264453,3580.9,3580.4,0.4595]
[1762807832340,0.60241399,3580.8,3580.4,3.25247032]
[1762807832540,4.05225464,3581.0,3580.4,3.25247032]
[1762807832842,4.05225464,3581.0,3580.5,0.4595]
[1762807833037,2.79261901,3580.9,3580.3,2.79500438]
[1762807833238,1.259712,3581.0,3580.4,2.79297991]
[1762807833437,1.259712,3581.0,3580.8,0.4511]
[1762807833607,2.79265396,3580.9,3580.4,0.4595]
[1762807833809,2.79260809,3580.9,3580.4,0.4595]
[1762807834540,0.001,3581.1,3580.8,0.4511]
[1762807834709,0.45217044,3581.0,3580.8,0.4511]
[1762807834910,0.001,3581.1,3580.8,0.4511]
[1762807835157,0.001,3581.1,3580.6,0.4595]
[1762807835158,0.001,3581.1,3581.0,0.4511]
[1762807835441,0.001,3581.1,3580.4,0.4595]
[1762807835848,0.4697,3581.1,3580.3,0.002]
[1762807836035,0.2916,3580.4,3580.3,0.002]
[1762807836228,0.60004729,3580.4,3580.3,0.002]
[1762807836424,3.85993131,3580.4,3580.3,0.002]
[1762807836635,3.39303131,3580.4,3580.3,0.002]
[1762807837036,3.85993131,3580.4,3580.3,0.002]
[1762807837950,4.81132401,3580.4,3580.3,0.002]
[1762807838953,6.07103601,3580.4,3580.3,0.002]
[1762807839983,6.47654001,3580.4,3580.3,0.002]
[1762807840283,4.45835604,3580.2,3580.1,0.012]
[1762807840482,5.01634647,3580.2,3580.1,0.012]
[1762807840669,5.48504647,3580.2,3580.1,0.012]
[1762807842166,5.07954247,3580.2,3580.1,0.012]
[1762807842702,1.02669043,3580.2,3580.1,0.012]
[1762807842891,0.55329043,3580.2,3580.1,0.4631]
[1762807843048,3.81486832,3580.8,3580.1,0.4631]
[1762807843242,3.81486832,3580.8,3580.1,0.012]
[1762807843243,0.2916,3580.2,3580.1,0.012]
[1762807843481,3.08474004,3580.2,3580.1,0.012]
[1762807843643,1.31199323,3580.2,3580.1,0.012]
[1762807843850,0.84509323,3580.2,3580.1,0.012]
[1762807844049,0.2916,3580.2,3580.1,0.012]
[1762807844571,0.84509323,3580.2,3580.1,0.012]
[1762807844787,3.26215331,3581.1,3580.1,3.43680973]
[1762807844987,0.88008606,3581.0,3580.2,2.79307231]
[1762807845218,0.88008606,3581.0,3580.2,0.4595]
[1762807845219,0.55387073,3581.0,3580.2,0.4595]
[1762807845351,0.001,3581.1,3580.5,2.79289874]
[1762807845784,0.001,3581.1,3580.3,3.25254745]
[1762807845955,0.001,3581.1,3581.0,0.4511]
[1762807846909,0.001,3581.1,3581.0,3.70311605]
[1762807847191,0.001,3581.1,3581.0,4.69333124]
[1762807847492,0.001,3581.1,3581.0,4.35268844]
[1762807848058,0.001,3581.1,3581.0,6.35854724]
[1762807850296,0.001,3581.1,3580.4,0.11189891]
[1762807850297,0.001,3581.1,3580.1,0.1925]
[1762807850504,0.001,3581.1,3580.7,2.7927359]
[1762807850670,0.001,3581.1,3580.4,0.4595]
[1762807850871,0.001,3581.1,3580.6,2.79280879]
[1762807851576,0.001,3581.1,3580.4,3.25247706]
[1762807851577,0.001,3581.1,3580.7,2.79274128]
[1762807852582,0.001,3581.1,3580.6,3.25232689]
[1762807852875,0.001,3581.1,3580.6,0.4595]
[1762807853108,0.001,3581.1,3580.8,2.79266538]
[1762807853403,0.001,3581.1,3580.6,3.25232471]
[1762807853565,0.001,3581.1,3580.7,2.79268925]
[1762807854284,0.001,3581.1,3581.0,0.4511]
[1762807854911,0.001,3581.1,3581.0,3.71801605]
[1762807855910,0.001,3581.1,3580.5,2.79284031]
[1762807856116,0.001,3581.1,3580.7,2.79268908]
[1762807856257,0.001,3581.1,3580.4,0.4626]
[1762807856258,0.001,3581.1,3580.8,2.79266458]
[1762807856634,0.001,3581.1,3580.5,0.4626]
[1762807856908,0.001,3581.1,3581.0,3.26141605]
[1762807857280,0.001,3581.1,3581.0,3.72401605]
[1762807858347,0.001,3581.1,3581.0,3.26141605]
[1762807858897,0.001,3581.1,3580.8,2.79260433]
[1762807859409,0.001,3581.1,3580.9,2.79254444]
[1762807859742,0.001,3581.1,3581.0,3.26141605]
[1762807860301,0.001,3581.1,3581.0,0.4689]
[1762807860498,0.001,3581.1,3581.0,3.72401605]
[1762807860700,0.001,3581.1,3581.0,3.91308188]
[1762807860928,0.001,3581.1,3581.0,0.4689]
[1762807861124,0.001,3581.1,3581.0,3.26141605]
[1762807861653,0.001,3581.1,3581.0,3.72401605]
[1762807863600,0.001,3581.1,3581.0,2.79251605]
[1762807863858,0.3483,3581.1,3580.6,2.79276928]
[1762807864295,0.3483,3581.1,3580.7,2.79273426]
[1762807864614,0.3483,3581.1,3580.4,2.79298402]
[1762807864615,3.5034475,3581.1,3580.4,2.79298402]
[1762807864817,0.7109805,3581.1,3580.4,2.79297225]
[1762807865033,0.7109805,3581.1,3580.6,2.79277897]
[1762807865509,0.3483,3581.1,3580.6,2.79277897]
[1762807866118,2.79257341,3581.0,3580.3,2.79500013]
[1762807866347,2.79257341,3581.0,3580.3,2.79503392]
[1762807866535,0.1879,3580.9,3580.3,0.002]
[1762807866734,0.2636,3580.4,3580.3,0.002]
[1762807866939,3.05658402,3580.4,3580.3,0.002]
[1762807867142,4.12823195,3580.4,3580.3,0.002]
[1762807867446,5.38794395,3580.4,3580.3,0.002]
[1762807868841,4.90124395,3580.4,3580.3,0.002]
[1762807869227,2.10825993,3580.4,3580.3,0.002]
[1762807869421,0.2636,3580.4,3580.3,0.002]
[1762807869742,3.54328402,3580.4,3580.3,0.002]
[1762807870363,3.05658402,3580.4,3580.3,0.002]
[1762807870664,2.98056256,3580.9,3580.3,0.002]
[1762807870809,2.79287597,3580.6,3580.3,0.002]
[1762807871011,2.79298384,3580.5,3580.3,0.002]
[1762807871211,3.05658402,3580.4,3580.3,0.002]